[Event "36th Zalakaros Festival 2017"]
[Site "Zalakaros"]
[Date "2017.05.20"]
[Round "3"]
[White "Pujari, Rucha"]
[Black "Hnydiuk, Aleksander"]
[Result "0-1"]
[ECO "D73"]
[WhiteElo "2203"]
[BlackElo "2390"]
[Annotator "NA"]
[PlyCount "66"]
[EventDate "2017.??.??"]
[EventType "swiss"]
[EventCountry "HUN"]
[SourceTitle "playchess.com"]
[Source "ChessBase"]
[SourceQuality "1"]
[TimeControl "40/5400+30:1800+30"]

1. d4 {[%emt 0:00:10]} Nf6 {[%emt 0:07:16]} 2. c4 {[%emt 0:01:08]} g6 {[%emt 0:01:47]} 3. Nf3 {[%emt 0:01:08]} Bg7 {[%emt 0:00:04]} 4. g3 {[%emt 0:00:32]} d5 {[%emt 0:00:07]} 5. Bg2 {[%emt 0:00:24]} dxc4 {[%emt 0:00:05]} 6. O-O {[%emt 0:00:53]} O-O {[%emt 0:00:05]} 7. Na3 {[%emt 0:00:24]} c3 {[%emt 0:00:05]} 8. bxc3 {[%emt 0:00:14]} c5 {[%emt 0:00:04]} 9. e3 {[%emt 0:00:22]} Nc6 {[%emt 0:00:26]} 10. Qe2 {[%emt 0:00:16]} Bf5 {[%emt 0:00:41]} 11. Rd1 {[%emt 0:01:02]} Qb6 {[%emt 0:01:26]} 12. Bb2 {[%emt 0:06:21]} Rfd8 {[%emt 0:04:24]} 13. Nc4 {[%emt 0:13:49]} Qa6 {[%emt 0:02:25]} 14. Bf1 {[%emt 0:00:56]} Qa4 {[%emt 0:01:50]} 15. Nce5 {[%emt 0:08:12]} Nxe5 {[%emt 0:06:01]} 16. Nxe5 {[%emt 0:00:51]} cxd4 {[%emt 0:01:44]} 17. exd4 {[%emt 0:02:56]} Rac8 {[%emt 0:13:40]} 18. c4 {[%emt 0:05:04]} Nd7 {[%emt 0:07:06]} 19. Nxd7 {[%emt 0:06:03]} Rxd7 {[%emt 0:27:06]} 20. g4 {[%emt 0:14:34]} Be6 {[%emt 0:00:46]} 21. d5 {[%emt 0:00:28]} Bxg4 {[%emt 0:00:49]} 22. Qxg4 {[%emt 0:00:02]} Bxb2 {[%emt 0:00:07]} 23. Rab1 {[%emt 0:00:06]} Ba3 {[%emt 0:08:22]} 24. Rxb7 {[%emt 0:12:11]} Qxd1 {[%emt 0:02:56]} 25. Qxd1 {[%emt 0:09:42]} Rxb7 {[%emt 0:00:04]} 26. c5 {[%emt 0:03:50]} Rxc5 {[%emt 0:00:24]} 27. Qa4 {[%emt 0:00:25]} Rc3 {[%emt 0:02:49]} 28. Bb5 {[%emt 0:07:52]} Bd6 {[%emt 0:01:23]} 29. Kg2 {[%emt 0:00:33]} Bc5 {[%emt 0:05:48]} 30. h3 {[%emt 0:01:31]} Rb6 {[%emt 0:00:42]} 31. f3 {[%emt 0:02:54]} a6 {[%emt 0:00:41]} 32. Bxa6 {[%emt 0:00:33]} Rb2+ {[%emt 0:00:09]} 33. Kg3 {[%emt 0:00:17]} Bd6+ {[%emt 0:00:04]} 0-1

[Event "36th Zalakaros Festival 2017"]
[Site "Zalakaros"]
[Date "2017.05.20"]
[Round "3"]
[White "Csiki, Endre"]
[Black "Hemant, Sharma"]
[Result "0-1"]
[ECO "D70"]
[WhiteElo "2200"]
[BlackElo "2380"]
[Annotator "NA"]
[PlyCount "66"]
[EventDate "2017.??.??"]
[EventType "swiss"]
[EventCountry "HUN"]
[SourceTitle "playchess.com"]
[Source "ChessBase"]
[SourceQuality "1"]
[TimeControl "40/5400+30:1800+30"]

1. d4 {[%emt 0:00:03]} Nf6 {[%emt 0:07:24]} 2. c4 {[%emt 0:00:17]} g6 {[%emt 0:02:03]} 3. f3 {[%emt 0:00:09]} d5 {[%emt 0:00:55]} 4. cxd5 {[%emt 0:00:13]} Nxd5 {[%emt 0:00:03]} 5. e4 {[%emt 0:00:11]} Nb6 {[%emt 0:00:04]} 6. Nc3 {[%emt 0:00:17]} Bg7 {[%emt 0:00:12]} 7. Be3 {[%emt 0:00:07]} Nc6 {[%emt 0:02:23]} 8. Bb5 {[%emt 0:00:09]} O-O {[%emt 0:00:16]} 9. Nge2 {[%emt 0:00:08]} a6 {[%emt 0:04:11]} 10. Bxc6 {[%emt 0:00:57]} bxc6 {[%emt 0:00:05]} 11. b3 {[%emt 0:02:15]} a5 {[%emt 0:05:34]} 12. O-O {[%emt 0:01:10]} Ba6 {[%emt 0:00:07]} 13. Rc1 {[%emt 0:03:51]} a4 {[%emt 0:06:09]} 14. Re1 {[%emt 0:06:22]} axb3 {[%emt 0:00:43]} 15. axb3 {[%emt 0:00:18]} Qd7 {[%emt 0:07:40]} 16. Qc2 {[%emt 0:07:53]} Rfb8 {[%emt 0:00:10]} 17. Kh1 {[%emt 0:04:28]} Bxe2 {[%emt 0:13:16]} 18. Nxe2 {[%emt 0:00:51]} Nc8 {[%emt 0:00:05]} 19. Red1 {[%emt 0:11:28]} Nd6 {[%emt 0:10:44]} 20. Rd3 {[%emt 0:15:46]} Ra3 {[%emt 0:10:15]} 21. Rc3 {[%emt 0:12:46]} Rb7 {[%emt 0:03:23]} 22. Rxc6 {[%emt 0:02:42]} Raxb3 {[%emt 0:00:10]} 23. Rxc7 {[%emt 0:01:33]} Qxc7 {[%emt 0:00:19]} 24. Qxb3 {[%emt 0:01:47]} Rxb3 {[%emt 0:00:09]} 25. Rxc7 {[%emt 0:00:05]} Rxe3 {[%emt 0:00:06]} 26. Rc2 {[%emt 0:01:23]} Bxd4 {[%emt 0:00:09]} 27. h3 {[%emt 0:00:13]} Be5 {[%emt 0:00:13]} 28. f4 {[%emt 0:00:41]} Nxe4 {[%emt 0:00:05]} 29. Kg1 {[%emt 0:00:56]} Bf6 {[%emt 0:00:35]} 30. Kf1 {[%emt 0:00:46]} Ng3+ {[%emt 0:00:09]} 31. Nxg3 {[%emt 0:00:19]} Rxg3 {[%emt 0:00:02]} 32. Kf2 {[%emt 0:00:09]} Rc3 {[%emt 0:00:01]} 33. Rd2 {[%emt 0:00:09]} Kg7 {[%emt 0:00:06]} 0-1

[Event "36th Zalakaros Festival 2017"]
[Site "Zalakaros"]
[Date "2017.05.21"]
[Round "4"]
[White "Kosakowski, Jakub"]
[Black "Chovan, Milan"]
[Result "1-0"]
[ECO "C78"]
[WhiteElo "2369"]
[BlackElo "2288"]
[Annotator "NA"]
[PlyCount "113"]
[EventDate "2017.??.??"]
[EventType "swiss"]
[EventCountry "HUN"]
[SourceTitle "playchess.com"]
[Source "ChessBase"]
[SourceQuality "1"]
[TimeControl "40/5400+30:1800+30"]

1. e4 {[%emt 0:00:04]} e5 {[%emt 0:00:37]} 2. Nf3 {[%emt 0:00:11]} Nc6 {[%emt 0:00:06]} 3. Bb5 {[%emt 0:00:12]} a6 {[%emt 0:00:07]} 4. Ba4 {[%emt 0:00:09]} Nf6 {[%emt 0:00:08]} 5. O-O {[%emt 0:00:12]} b5 {[%emt 0:00:07]} 6. Bb3 {[%emt 0:00:07]} Bb7 {[%emt 0:00:05]} 7. d3 {[%emt 0:02:48]} Be7 {[%emt 0:00:17]} 8. a4 {[%emt 0:00:43]} O-O {[%emt 0:00:13]} 9. Nc3 {[%emt 0:00:19]} Na5 {[%emt 0:00:25]} 10. Ba2 {[%emt 0:01:27]} b4 {[%emt 0:00:16]} 11. Ne2 {[%emt 0:04:22]} d5 {[%emt 0:00:10]} 12. Nxe5 {[%emt 0:04:03]} dxe4 {[%emt 0:00:11]} 13. d4 {[%emt 0:01:45]} Rc8 {[%emt 0:01:02]} 14. Be3 {[%emt 0:13:09]} Bd5 {[%emt 0:15:11]} 15. c4 {[%emt 0:09:14]} bxc3 {[%emt 0:02:23]} 16. bxc3 {[%emt 0:00:59]} c5 {[%emt 0:12:24]} 17. Ng3 {[%emt 0:10:12]} Bxa2 {[%emt 0:10:50]} 18. Rxa2 {[%emt 0:00:02]} Qd5 {[%emt 0:00:13]} 19. Rd2 {[%emt 0:00:26]} cxd4 {[%emt 0:00:53]} 20. Bxd4 {[%emt 0:00:33]} Qe6 {[%emt 0:16:43]} 21. Re2 {[%emt 0:19:40]} Rfd8 {[%emt 0:14:14]} 22. Nxe4 {[%emt 0:04:31]} Nxe4 {[%emt 0:02:30]} 23. Rxe4 {[%emt 0:00:06]} Bc5 {[%emt 0:05:38]} 24. Qe2 {[%emt 0:01:55]} Bxd4 {[%emt 0:00:20]} 25. cxd4 {[%emt 0:00:07]} f5 {[%emt 0:03:57]} 26. Rh4 {[%emt 0:07:32]} Nb3 {[%emt 0:03:42]} 27. Qe3 {[%emt 0:00:27]} Qd5 {[%emt 0:00:39]} 28. Nf3 {[%emt 0:12:21]} Re8 {[%emt 0:00:17]} 29. Qg5 {[%emt 0:00:12]} Re6 {[%emt 0:01:15]} 30. Rf4 {[%emt 0:02:26]} Nd2 {[%emt 0:02:40]} 31. Rd1 {[%emt 0:03:43]} Nxf3+ {[%emt 0:00:18]} 32. Rxf3 {[%emt 0:00:05]} Qxd4 {[%emt 0:00:21]} 33. Rc1 {[%emt 0:01:07]} Qc4 {[%emt 0:03:06]} 34. Rb1 {[%emt 0:01:14]} Rce8 {[%emt 0:04:03]} 35. h3 {[%emt 0:00:23]} Qxa4 {[%emt 0:00:49]} 36. Qxf5 {[%emt 0:00:28]} Qd7 {[%emt 0:00:53]} 37. Qa5 {[%emt 0:00:26]} Qd6 {[%emt 0:00:37]} 38. Rfb3 {[%emt 0:00:44]} Re5 {[%emt 0:00:51]} 39. Qc3 {[%emt 0:00:19]} Qe6 {[%emt 0:00:49]} 40. Rb6 {[%emt 0:00:00]} Re1+ {[%emt 0:00:22]} 41. Kh2 {[%emt 0:00:34]} Rxb1 {[%emt 0:06:50]} 42. Rxb1 {[%emt 0:07:36]} Qe5+ {[%emt 0:00:09]} 43. Qxe5 {[%emt 0:00:09]} Rxe5 {[%emt 0:00:01]} 44. Rb7 {[%emt 0:00:02]} Ra5 {[%emt 0:00:35]} 45. f4 {[%emt 0:01:18]} Ra3 {[%emt 0:00:02]} 46. g4 {[%emt 0:00:39]} h6 {[%emt 0:01:02]} 47. f5 {[%emt 0:00:40]} a5 {[%emt 0:02:01]} 48. h4 {[%emt 0:00:26]} a4 {[%emt 0:00:51]} 49. Ra7 {[%emt 0:00:27]} Ra1 {[%emt 0:05:05]} 50. Kg2 {[%emt 0:00:41]} a3 {[%emt 0:00:29]} 51. g5 {[%emt 0:00:26]} hxg5 {[%emt 0:00:01]} 52. hxg5 {[%emt 0:00:02]} a2 {[%emt 0:00:26]} 53. Ra8+ {[%emt 0:00:22]} Kf7 {[%emt 0:00:05]} 54. Ra7+ {[%emt 0:00:02]} Kf8 {[%emt 0:00:09]} 55. g6 {[%emt 0:00:10]} Ke8 {[%emt 0:00:46]} 56. f6 {[%emt 0:00:13]} gxf6 {[%emt 0:02:28]} 57. g7 {[%emt 0:00:10]} 1-0

[Event "36th Zalakaros Festival 2017"]
[Site "Zalakaros"]
[Date "2017.05.21"]
[Round "4"]
[White "Ivic, Velimir"]
[Black "Krstulovic, Alex"]
[Result "1-0"]
[ECO "C45"]
[WhiteElo "2345"]
[BlackElo "2280"]
[Annotator "NA"]
[PlyCount "43"]
[EventDate "2017.??.??"]
[EventType "swiss"]
[EventCountry "HUN"]
[SourceTitle "playchess.com"]
[Source "ChessBase"]
[SourceQuality "1"]
[TimeControl "40/5400+30:1800+30"]

1. e4 {[%emt 0:00:02]} e5 {[%emt 0:00:35]} 2. Nf3 {[%emt 0:00:09]} Nc6 {[%emt 0:00:06]} 3. d4 {[%emt 0:00:17]} exd4 {[%emt 0:00:23]} 4. Nxd4 {[%emt 0:00:05]} Bc5 {[%emt 0:00:41]} 5. Nb3 {[%emt 0:00:33]} Bb6 {[%emt 0:00:30]} 6. Nc3 {[%emt 0:00:14]} d6 {[%emt 0:07:52]} 7. Qe2 a5 {[%emt 0:27:42]} 8. a4 {[%emt 0:05:51]} Nb4 {[%emt 0:01:46]} 9. Bf4 {[%emt 0:08:57]} Ne7 {[%emt 0:05:42]} 10. O-O-O {[%emt 0:02:55]} O-O {[%emt 0:01:24]} 11. h4 {[%emt 0:19:07]} Bd7 {[%emt 0:09:07]} 12. h5 {[%emt 0:07:51]} Qe8 {[%emt 0:07:07]} 13. h6 {[%emt 0:03:26]} g6 {[%emt 0:00:48]} 14. e5 {[%emt 0:14:13]} dxe5 {[%emt 0:13:12]} 15. Qxe5 {[%emt 0:15:16]} Nf5 {[%emt 0:00:04]} 16. Ne4 {[%emt 0:05:04]} Qxe5 {[%emt 0:05:35]} 17. Bxe5 {[%emt 0:00:06]} Bxa4 {[%emt 0:00:12]} 18. Nf6+ {[%emt 0:07:52]} Kh8 {[%emt 0:00:00]} 19. g4 {[%emt 0:02:37]} Nc6 {[%emt 0:03:53]} 20. Bc3 {[%emt 0:00:54]} Nfe7 {[%emt 0:00:00]} 21. Nd7+ {[%emt 0:00:30]} Kg8 {[%emt 0:00:30]} 22. Bg7 {[%emt 0:00:30]} 1-0

[Event "36th Zalakaros Festival 2017"]
[Site "Zalakaros"]
[Date "2017.05.21"]
[Round "4"]
[White "Rapport, Jovana"]
[Black "Rigo, Janos"]
[Result "1/2-1/2"]
[ECO "A45"]
[WhiteElo "2334"]
[BlackElo "2236"]
[Annotator "NA"]
[PlyCount "28"]
[EventDate "2017.??.??"]
[EventType "swiss"]
[EventCountry "HUN"]
[SourceTitle "playchess.com"]
[Source "ChessBase"]
[SourceQuality "1"]
[TimeControl "40/5400+30:1800+30"]

1. d4 {[%emt 0:00:03]} Nf6 {[%emt 0:01:08]} 2. Nc3 {[%emt 0:00:05]} d5 {[%emt 0:00:13]} 3. Bf4 {[%emt 0:00:06]} c6 {[%emt 0:00:24]} 4. e3 {[%emt 0:00:07]} g6 {[%emt 0:00:18]} 5. Be2 {[%emt 0:00:11]} Bg7 {[%emt 0:00:17]} 6. h4 {[%emt 0:00:27]} Qa5 {[%emt 0:00:32]} 7. Qd2 {[%emt 0:04:10]} b5 {[%emt 0:01:03]} 8. f3 {[%emt 0:02:52]} Nbd7 {[%emt 0:01:04]} 9. Nh3 {[%emt 0:01:10]} Nh5 {[%emt 0:01:35]} 10. Nd1 {[%emt 0:13:32]} Qxd2+ {[%emt 0:01:27]} 11. Kxd2 {[%emt 0:00:03]} Nxf4 {[%emt 0:00:37]} 12. Nxf4 {[%emt 0:00:03]} e5 {[%emt 0:00:08]} 13. dxe5 {[%emt 0:00:07]} Nxe5 {[%emt 0:00:10]} 14. Nf2 {[%emt 0:11:25]} Rb8 {[%emt 0:01:39]} 1/2-1/2

[Event "36th Zalakaros Festival 2017"]
[Site "Zalakaros"]
[Date "2017.05.21"]
[Round "4"]
[White "Borsos, Bogdan"]
[Black "Csiki, Endre"]
[Result "1/2-1/2"]
[ECO "D85"]
[WhiteElo "2321"]
[BlackElo "2200"]
[Annotator "NA"]
[PlyCount "108"]
[EventDate "2017.??.??"]
[EventType "swiss"]
[EventCountry "HUN"]
[SourceTitle "playchess.com"]
[Source "ChessBase"]
[SourceQuality "1"]
[TimeControl "40/5400+30:1800+30"]

1. d4 {[%emt 0:00:04]} Nf6 {[%emt 0:00:38]} 2. c4 {[%emt 0:00:19]} g6 {[%emt 0:00:07]} 3. Nc3 {[%emt 0:00:22]} d5 {[%emt 0:00:08]} 4. cxd5 {[%emt 0:01:12]} Nxd5 {[%emt 0:00:05]} 5. e4 {[%emt 0:02:13]} Nxc3 {[%emt 0:00:11]} 6. bxc3 {[%emt 0:00:02]} Bg7 {[%emt 0:00:10]} 7. Bb5+ {[%emt 0:03:07]} c6 {[%emt 0:00:20]} 8. Be2 {[%emt 0:00:09]} c5 {[%emt 0:00:39]} 9. Be3 {[%emt 0:00:22]} Nc6 {[%emt 0:00:40]} 10. Nf3 {[%emt 0:00:33]} Qa5 {[%emt 0:07:12]} 11. Bd2 {[%emt 0:02:26]} e5 {[%emt 0:17:18]} 12. d5 {[%emt 0:00:13]} Nb8 {[%emt 0:00:35]} 13. O-O {[%emt 0:06:28]} O-O {[%emt 0:00:23]} 14. a4 {[%emt 0:02:37]} Nd7 {[%emt 0:03:08]} 15. c4 {[%emt 0:00:23]} Qc7 {[%emt 0:00:53]} 16. a5 {[%emt 0:00:27]} Qd6 {[%emt 0:01:06]} 17. Bc3 {[%emt 0:15:27]} h6 {[%emt 0:03:39]} 18. Ne1 {[%emt 0:06:32]} f5 {[%emt 0:06:04]} 19. exf5 {[%emt 0:03:07]} gxf5 {[%emt 0:00:09]} 20. f4 {[%emt 0:00:12]} e4 {[%emt 0:04:35]} 21. Bxg7 {[%emt 0:03:24]} Kxg7 {[%emt 0:00:10]} 22. Ra3 {[%emt 0:00:13]} Nf6 {[%emt 0:06:18]} 23. Rg3+ {[%emt 0:04:05]} Kh7 {[%emt 0:00:32]} 24. Nc2 {[%emt 0:00:16]} Bd7 {[%emt 0:01:24]} 25. Ne3 {[%emt 0:00:19]} Rg8 {[%emt 0:01:06]} 26. Qa1 {[%emt 0:03:10]} Rae8 {[%emt 0:04:13]} 27. Qb2 {[%emt 0:04:32]} Bc8 {[%emt 0:02:07]} 28. Rxg8 {[%emt 0:00:20]} Kxg8 {[%emt 0:00:56]} 29. g3 {[%emt 0:03:34]} Re7 {[%emt 0:01:25]} 30. Rb1 {[%emt 0:01:52]} Ne8 {[%emt 0:08:10]} 31. Bf1 {[%emt 0:00:55]} Ng7 {[%emt 0:04:27]} 32. Bh3 {[%emt 0:02:20]} Kf8 {[%emt 0:03:22]} 33. Qa1 {[%emt 0:03:02]} Kf7 {[%emt 0:02:26]} 34. Rb5 {[%emt 0:00:57]} Kg8 {[%emt 0:02:24]} 35. Qb2 {[%emt 0:01:10]} Kf7 {[%emt 0:01:55]} 36. Kf2 {[%emt 0:02:52]} Kg8 {[%emt 0:00:57]} 37. Qa3 {[%emt 0:09:07]} Rc7 {[%emt 0:00:07]} 38. Qc3 {[%emt 0:07:13]} Re7 {[%emt 0:00:23]} 39. Qb2 {[%emt 0:00:34]} Kf7 {[%emt 0:00:13]} 40. Rb3 {[%emt 0:00:00]} Kg8 {[%emt 0:04:49]} 41. Ng2 {[%emt 0:03:24]} Kf7 {[%emt 0:04:25]} 42. Nh4 {[%emt 0:00:22]} Kg8 {[%emt 0:03:14]} 43. Ke3 {[%emt 0:00:55]} Kf7 {[%emt 0:02:31]} 44. Kf2 {[%emt 0:07:03]} Kg8 {[%emt 0:00:16]} 45. Ng2 {[%emt 0:01:31]} Kf7 {[%emt 0:00:33]} 46. Ne3 {[%emt 0:00:05]} Kg8 {[%emt 0:00:33]} 47. Qa3 {[%emt 0:00:49]} Kf7 {[%emt 0:00:09]} 48. Nc2 {[%emt 0:01:23]} Kg8 {[%emt 0:11:08]} 49. Bf1 {[%emt 0:02:22]} Ne8 {[%emt 0:01:12]} 50. Ne3 {[%emt 0:00:52]} Ng7 {[%emt 0:00:16]} 51. Rb5 {[%emt 0:00:40]} Rc7 {[%emt 0:00:08]} 52. Qb2 {[%emt 0:01:25]} Re7 {[%emt 0:00:08]} 53. Be2 {[%emt 0:00:10]} Ne8 {[%emt 0:01:34]} 54. Qa3 {[%emt 0:00:16]} Rc7 {[%emt 0:00:06]} 1/2-1/2

[Event "36th Zalakaros Festival 2017"]
[Site "Zalakaros"]
[Date "2017.05.21"]
[Round "4"]
[White "Blohberger, Felix"]
[Black "Pujari, Rucha"]
[Result "1/2-1/2"]
[ECO "E06"]
[WhiteElo "2319"]
[BlackElo "2203"]
[Annotator "NA"]
[PlyCount "94"]
[EventDate "2017.??.??"]
[EventType "swiss"]
[EventCountry "HUN"]
[SourceTitle "playchess.com"]
[Source "ChessBase"]
[SourceQuality "1"]
[TimeControl "40/5400+30:1800+30"]

1. d4 {[%emt 0:00:01]} d5 {[%emt 0:02:25]} 2. c4 {[%emt 0:00:17]} e6 {[%emt 0:00:15]} 3. Nf3 {[%emt 0:00:06]} Nf6 {[%emt 0:00:39]} 4. g3 {[%emt 0:00:04]} Be7 {[%emt 0:01:41]} 5. Bg2 {[%emt 0:00:07]} O-O {[%emt 0:00:06]} 6. O-O {[%emt 0:00:05]} c6 {[%emt 0:00:05]} 7. Nc3 {[%emt 0:00:06]} b6 {[%emt 0:01:39]} 8. Qd3 {[%emt 0:02:17]} Nbd7 {[%emt 0:04:39]} 9. e4 {[%emt 0:01:19]} Bb7 {[%emt 0:10:43]} 10. b3 {[%emt 0:10:47]} dxe4 {[%emt 0:13:29]} 11. Nxe4 {[%emt 0:00:06]} Nxe4 {[%emt 0:02:39]} 12. Qxe4 {[%emt 0:00:06]} Nf6 {[%emt 0:00:48]} 13. Qe2 {[%emt 0:09:33]} c5 {[%emt 0:02:11]} 14. Bb2 {[%emt 0:01:39]} cxd4 {[%emt 0:11:27]} 15. Rad1 {[%emt 0:03:35]} Qc7 {[%emt 0:04:45]} 16. Rxd4 {[%emt 0:13:00]} Rad8 {[%emt 0:03:39]} 17. Rfd1 {[%emt 0:02:52]} Bc5 {[%emt 0:10:33]} 18. Rxd8 {[%emt 0:17:37]} Rxd8 {[%emt 0:00:19]} 19. Rxd8+ {[%emt 0:01:24]} Qxd8 {[%emt 0:00:02]} 20. Ne5 {[%emt 0:04:23]} Qa8 {[%emt 0:08:20]} 21. Bxb7 {[%emt 0:00:25]} Qxb7 {[%emt 0:00:02]} 22. Nd3 {[%emt 0:04:58]} Be7 {[%emt 0:01:22]} 23. Nf4 {[%emt 0:03:51]} Qe4 {[%emt 0:04:12]} 24. Qxe4 {[%emt 0:02:21]} Nxe4 {[%emt 0:00:02]} 25. Nd3 {[%emt 0:01:23]} f6 {[%emt 0:04:25]} 26. f3 {[%emt 0:01:28]} Nc5 {[%emt 0:00:58]} 27. Nxc5 {[%emt 0:01:58]} Bxc5+ {[%emt 0:00:47]} 28. Kf1 {[%emt 0:00:06]} e5 {[%emt 0:02:08]} 29. Ke2 {[%emt 0:00:04]} Kf7 {[%emt 0:00:13]} 30. Kd3 {[%emt 0:04:30]} Ke6 {[%emt 0:01:30]} 31. Bc3 a5 {[%emt 0:07:11]} 32. g4 {[%emt 0:06:30]} g6 {[%emt 0:00:28]} 33. Bd2 {[%emt 0:02:32]} f5 {[%emt 0:00:01]} 34. h3 {[%emt 0:01:08]} h5 {[%emt 0:00:19]} 35. gxf5+ {[%emt 0:01:09]} gxf5 {[%emt 0:00:21]} 36. Bg5 {[%emt 0:01:53]} Kd6 {[%emt 0:00:24]} 37. Bc1 {[%emt 0:00:28]} Ke6 {[%emt 0:02:04]} 38. Bd2 {[%emt 0:03:20]} Kd6 {[%emt 0:00:09]} 39. Bh6 {[%emt 0:00:39]} Ke6 {[%emt 0:00:22]} 40. Bg5 {[%emt 0:00:00]} Kd6 {[%emt 0:00:34]} 41. Bc1 {[%emt 0:00:17]} Ke6 {[%emt 0:00:11]} 42. a3 {[%emt 0:16:27]} Kd6 {[%emt 0:01:36]} 43. Bh6 {[%emt 0:00:22]} Ke6 {[%emt 0:01:14]} 44. Be3 {[%emt 0:03:51]} Bxe3 {[%emt 0:05:00]} 45. Kxe3 {[%emt 0:00:07]} h4 {[%emt 0:00:45]} 46. b4 {[%emt 0:00:08]} axb4 {[%emt 0:00:30]} 47. axb4 {[%emt 0:00:01]} Kd6 {[%emt 0:00:11] Ke4} 1/2-1/2

[Event "36th Zalakaros Festival 2017"]
[Site "Zalakaros"]
[Date "2017.05.21"]
[Round "4"]
[White "Sadhwani, Raunak"]
[Black "Papp, Petra"]
[Result "1-0"]
[ECO "C88"]
[WhiteElo "2298"]
[BlackElo "2371"]
[Annotator "NA"]
[PlyCount "141"]
[EventDate "2017.??.??"]
[EventType "swiss"]
[EventCountry "HUN"]
[SourceTitle "playchess.com"]
[Source "ChessBase"]
[SourceQuality "1"]
[TimeControl "40/5400+30:1800+30"]

1. e4 {[%emt 0:00:04]} e5 {[%emt 0:01:13]} 2. Nf3 {[%emt 0:00:11]} Nc6 {[%emt 0:00:09]} 3. Bb5 {[%emt 0:00:01]} a6 {[%emt 0:00:10]} 4. Ba4 {[%emt 0:00:03]} Nf6 {[%emt 0:00:18]} 5. O-O {[%emt 0:00:06]} Be7 {[%emt 0:01:22]} 6. Re1 {[%emt 0:00:45]} b5 {[%emt 0:00:31]} 7. Bb3 {[%emt 0:00:05]} O-O {[%emt 0:00:55]} 8. h3 {[%emt 0:01:14]} Bb7 {[%emt 0:01:34]} 9. Nc3 {[%emt 0:02:29]} Na5 {[%emt 0:13:56]} 10. d3 {[%emt 0:04:41]} Nxb3 {[%emt 0:05:03]} 11. axb3 {[%emt 0:00:05]} b4 {[%emt 0:00:30]} 12. Ne2 {[%emt 0:01:02]} d5 {[%emt 0:03:44]} 13. exd5 {[%emt 0:00:30]} Qxd5 {[%emt 0:02:24]} 14. c4 {[%emt 0:12:06]} Qc6 15. d4 {[%emt 0:11:53]} Rad8 {[%emt 0:21:43]} 16. d5 {[%emt 0:05:34]} Nxd5 {[%emt 0:11:23]} 17. cxd5 {[%emt 0:01:05]} Rxd5 {[%emt 0:00:19]} 18. Bd2 {[%emt 0:00:13]} Rfd8 {[%emt 0:09:50]} 19. Rc1 {[%emt 0:03:48]} Qb6 {[%emt 0:03:04]} 20. Ng3 {[%emt 0:04:16]} Rd3 {[%emt 0:01:29]} 21. Qc2 {[%emt 0:04:38]} Bxf3 {[%emt 0:01:45]} 22. Be3 {[%emt 0:00:07]} Qf6 {[%emt 0:09:22]} 23. gxf3 {[%emt 0:00:43]} Qxf3 {[%emt 0:01:59]} 24. Qxc7 {[%emt 0:02:01]} Bf6 {[%emt 0:00:10]} 25. Qc4 {[%emt 0:02:42]} a5 {[%emt 0:03:33]} 26. Qe4 {[%emt 0:03:06]} Qxe4 {[%emt 0:00:48]} 27. Nxe4 {[%emt 0:00:04]} Rxb3 {[%emt 0:00:24]} 28. Red1 {[%emt 0:16:54]} Rxd1+ {[%emt 0:02:26]} 29. Rxd1 {[%emt 0:00:04]} h5 {[%emt 0:00:09]} 30. Rd2 {[%emt 0:01:06]} Be7 {[%emt 0:00:17]} 31. Rd7 {[%emt 0:01:24]} Bf6 {[%emt 0:01:07]} 32. Ra7 {[%emt 0:02:37]} Rxb2 {[%emt 0:00:33]} 33. Rxa5 {[%emt 0:00:13]} Kh7 {[%emt 0:01:19]} 34. Kg2 {[%emt 0:01:07]} Kg6 {[%emt 0:00:46]} 35. Ra6 {[%emt 0:00:16]} Kf5 {[%emt 0:01:31]} 36. Nd6+ {[%emt 0:00:15]} Kg6 {[%emt 0:00:08]} 37. Nc4 {[%emt 0:06:20]} Rb1 {[%emt 0:02:32]} 38. Nxe5+ {[%emt 0:00:17]} Kh7 {[%emt 0:00:24]} 39. Nxf7 {[%emt 0:00:17]} b3 {[%emt 0:00:19]} 40. Ng5+ {[%emt 0:00:00]} Bxg5 {[%emt 0:00:49]} 41. Bxg5 {[%emt 0:05:26]} Rd1 {[%emt 0:01:55]} 42. Rb6 {[%emt 0:00:11]} Rd3 {[%emt 0:01:18]} 43. h4 {[%emt 0:00:52]} Kg8 {[%emt 0:00:26]} 44. Kf1 {[%emt 0:00:14]} Kf7 {[%emt 0:00:55]} 45. Ke2 {[%emt 0:00:15]} Rc3 {[%emt 0:00:32]} 46. f4 {[%emt 0:02:00]} g6 {[%emt 0:01:35]} 47. Kd2 {[%emt 0:00:09]} Rh3 {[%emt 0:01:02]} 48. Kc1 {[%emt 0:00:06]} Rf3 {[%emt 0:01:07]} 49. Kb2 {[%emt 0:00:06]} Rd3 {[%emt 0:01:18]} 50. Rxb3 {[%emt 0:00:09]} Rd7 {[%emt 0:00:16]} 51. Kc2 {[%emt 0:00:09]} Kg7 {[%emt 0:00:41]} 52. Rd3 {[%emt 0:00:05]} Rc7+ {[%emt 0:00:05]} 53. Kd2 {[%emt 0:00:04]} Rb7 {[%emt 0:00:18]} 54. Ke3 {[%emt 0:00:05]} Ra7 {[%emt 0:00:12]} 55. Ke4 {[%emt 0:00:06]} Kf7 {[%emt 0:00:33]} 56. Ke5 {[%emt 0:00:09]} Rb7 {[%emt 0:00:14]} 57. Rd5 {[%emt 0:00:16]} Ra7 {[%emt 0:00:28]} 58. f5 {[%emt 0:00:08]} gxf5 {[%emt 0:00:25]} 59. Kxf5 {[%emt 0:00:07]} Rb7 {[%emt 0:00:24]} 60. Bf6 {[%emt 0:00:10]} Ra7 {[%emt 0:00:52]} 61. Be5 {[%emt 0:00:43]} Ra4 {[%emt 0:01:47]} 62. Rd7+ {[%emt 0:00:20]} Ke8 {[%emt 0:00:11]} 63. Rh7 {[%emt 0:00:18]} Kf8 {[%emt 0:01:32]} 64. Rxh5 {[%emt 0:01:15]} Kf7 {[%emt 0:00:15]} 65. Rh7+ {[%emt 0:00:07]} Kg8 {[%emt 0:00:02]} 66. Rg7+ {[%emt 0:00:06]} Kf8 {[%emt 0:00:21]} 67. Rg4 {[%emt 0:00:07]} Ra6 {[%emt 0:00:25]} 68. Bf6 {[%emt 0:00:10]} Kf7 {[%emt 0:00:17]} 69. Rg7+ {[%emt 0:00:05]} Kf8 {[%emt 0:00:03]} 70. Kg6 {[%emt 0:00:07]} Ra2 {[%emt 0:00:40]} 71. Rd7 {[%emt 0:00:18]} 1-0

[Event "36th Zalakaros Festival 2017"]
[Site "Zalakaros"]
[Date "2017.05.21"]
[Round "4"]
[White "Risting, Eivind Olav"]
[Black "Paschall, William M"]
[Result "1/2-1/2"]
[ECO "A54"]
[WhiteElo "2297"]
[BlackElo "2380"]
[Annotator "NA"]
[PlyCount "37"]
[EventDate "2017.??.??"]
[EventType "swiss"]
[EventCountry "HUN"]
[SourceTitle "playchess.com"]
[Source "ChessBase"]
[SourceQuality "1"]
[TimeControl "40/5400+30:1800+30"]

1. d4 {[%emt 0:00:03]} Nf6 {[%emt 0:03:27]} 2. c4 {[%emt 0:00:19]} d6 {[%emt 0:00:40]} 3. Nc3 {[%emt 0:00:39]} e5 {[%emt 0:00:59]} 4. Nf3 {[%emt 0:00:55]} e4 {[%emt 0:01:18]} 5. Ng5 {[%emt 0:02:34]} Qe7 {[%emt 0:00:43]} 6. Qc2 {[%emt 0:07:02]} Bf5 {[%emt 0:02:10]} 7. g4 {[%emt 0:02:06]} Bg6 {[%emt 0:04:52]} 8. Bg2 {[%emt 0:03:22]} Nc6 {[%emt 0:02:01]} 9. Nd5 {[%emt 0:17:18]} Nxd5 {[%emt 0:21:31]} 10. cxd5 {[%emt 0:00:25]} e3 {[%emt 0:00:38]} 11. Qa4 {[%emt 0:06:06]} Qxg5 {[%emt 0:01:47]} 12. Bxe3 {[%emt 0:05:13]} Qxg4 {[%emt 0:01:46]} 13. Bf3 {[%emt 0:03:10]} Qf5 {[%emt 0:08:11]} 14. dxc6 {[%emt 0:01:44]} b6 {[%emt 0:03:36]} 15. d5 {[%emt 0:02:03]} Be7 {[%emt 0:03:10]} 16. Rd1 {[%emt 0:15:45]} Bf6 {[%emt 0:13:00]} 17. Bg4 {[%emt 0:02:29]} b5 {[%emt 0:02:25]} 18. Bxf5 {[%emt 0:01:17]} bxa4 {[%emt 0:00:10]} 19. Bxg6 {[%emt 0:10:04]} 1/2-1/2